[Event "*** SCC Grand Prix: Titled Tuesday Blitz"]
[Site "Chess.com"]
[Date "2020.09.08"]
[Round "4"]
[White "plumalka"]
[Black "Koksik_13"]
[Result "0-1"]
[WhiteElo "2420"]
[BlackElo "2640"]
[TimeControl "180+1"]
[EndTime "10:39:15 PDT"]
[Termination "Koksik_13 won by resignation"]

1. e4 {[%clk 0:03:00.9]} 1... e6 {[%clk 0:02:59.5]} 2. d4 {[%clk 0:03:00.5]}
2... d5 {[%clk 0:02:59.7]} 3. Nc3 {[%clk 0:03:00.3]} 3... Bb4 {[%clk 0:02:59.5]}
4. Qd3 {[%clk 0:02:59.9]} 4... Nc6 {[%clk 0:02:58.1]} 5. Nf3 {[%clk 0:02:58.4]}
5... dxe4 {[%clk 0:02:56]} 6. Qxe4 {[%clk 0:02:59.3]} 6... Nf6 {[%clk
0:02:53.2]} 7. Qh4 {[%clk 0:02:59.3]} 7... h6 {[%clk 0:02:42.8]} 8. Bg5 {[%clk
0:02:57.3]} 8... O-O {[%clk 0:02:40.2]} 9. Bxf6 {[%clk 0:02:56.5]} 9... Qxf6
{[%clk 0:02:41.1]} 10. Qxf6 {[%clk 0:02:56.4]} 10... gxf6 {[%clk 0:02:42]} 11.
O-O-O {[%clk 0:02:56.2]} 11... Bxc3 {[%clk 0:02:39.5]} 12. bxc3 {[%clk
0:02:57.1]} 12... b6 {[%clk 0:02:36.3]} 13. Bc4 {[%clk 0:02:50.8]} 13... Bb7
{[%clk 0:02:33]} 14. Nd2 {[%clk 0:02:40.5]} 14... Na5 {[%clk 0:02:32]} 15. Bb3
{[%clk 0:02:36.8]} 15... Kh7 {[%clk 0:02:29.5]} 16. f3 {[%clk 0:02:33.4]} 16...
Rg8 {[%clk 0:02:27.8]} 17. Rhg1 {[%clk 0:02:33]} 17... Rg5 {[%clk 0:02:25.3]}
18. Rdf1 {[%clk 0:02:25.8]} 18... Rag8 {[%clk 0:02:24.6]} 19. Rf2 {[%clk
0:02:26]} 19... f5 {[%clk 0:02:23.5]} 20. c4 {[%clk 0:02:24.1]} 20... h5 {[%clk
0:02:21.1]} 21. h4 {[%clk 0:02:15.4]} 21... Rg3 {[%clk 0:02:21.2]} 22. Nf1
{[%clk 0:02:10]} 22... Rxf3 {[%clk 0:02:18.4]} 23. Rxf3 {[%clk 0:02:06.4]} 23...
Bxf3 {[%clk 0:02:18.3]} 24. Ne3 {[%clk 0:02:06]} 24... f4 {[%clk 0:02:16.5]} 25.
Nd1 {[%clk 0:02:01.1]} 25... Bxg2 {[%clk 0:02:14.5]} 26. c3 {[%clk 0:02:00]}
26... Nxb3+ {[%clk 0:02:14]} 27. axb3 {[%clk 0:02:00.1]} 27... f3 {[%clk
0:02:14.9]} 28. Nf2 {[%clk 0:01:59.6]} 28... Rg4 {[%clk 0:02:15.2]} 29. d5
{[%clk 0:01:55.3]} 29... Rxh4 {[%clk 0:02:14.7]} 30. dxe6 {[%clk 0:01:53]} 30...
fxe6 {[%clk 0:02:15.6]} 31. Re1 {[%clk 0:01:53.3]} 31... Rf4 {[%clk 0:02:06.2]}
32. Rxe6 {[%clk 0:01:52]} 32... h4 {[%clk 0:02:06.7]} 33. Kd2 {[%clk 0:01:37.1]}
33... h3 {[%clk 0:02:05.6]} 34. Ke3 {[%clk 0:01:31.5]} 34... Rf7 {[%clk
0:02:04.6]} 35. Ng4 {[%clk 0:01:25.9]} 35... Kg7 {[%clk 0:01:56.8]} 36. Kf2
{[%clk 0:01:25.4]} 36... Rf4 {[%clk 0:01:55.4]} 37. Nh2 {[%clk 0:01:21]} 37...
Kf7 {[%clk 0:01:53.5]} 38. Rh6 {[%clk 0:01:20.4]} 38... Re4 {[%clk 0:01:51.4]}
39. Rh7+ {[%clk 0:01:11]} 39... Kg6 {[%clk 0:01:49.9]} 40. Rxc7 {[%clk
0:01:10.7]} 40... Re2+ {[%clk 0:01:49.3]} 41. Kg3 {[%clk 0:01:07.4]} 41... Bh1
{[%clk 0:01:32]} 42. Kxh3 {[%clk 0:01:02.6]} 42... Rxh2+ {[%clk 0:01:30.7]} 43.
Kxh2 {[%clk 0:01:00.4]} 43... f2 {[%clk 0:01:31.6]} 44. Rc8 {[%clk 0:00:41.2]}
44... f1=Q {[%clk 0:01:29.9]} 45. Rg8+ {[%clk 0:00:40.9]} 45... Kf7 {[%clk
0:01:26.1]} 46. Rg1 {[%clk 0:00:41.8]} 46... Qf3 {[%clk 0:01:18.9]} 47. Rxh1
{[%clk 0:00:41.7]} 47... Qxc3 {[%clk 0:01:17.8]} 48. Rf1+ {[%clk 0:00:35.7]}
48... Ke7 {[%clk 0:01:16.9]} 49. Rg1 {[%clk 0:00:34.7]} 49... Qxb3 {[%clk
0:01:16.3]} 50. Rg7+ {[%clk 0:00:34.6]} 50... Kd6 {[%clk 0:01:15.9]} 51. Rxa7
{[%clk 0:00:35.5]} 51... Qxc4 {[%clk 0:01:15.6]} 0-1

[Event "*** SCC Grand Prix: Titled Tuesday Blitz"]
[Site "Chess.com"]
[Date "2020.09.08"]
[Round "4"]
[White "mr65"]
[Black "KubaGepard"]
[Result "0-1"]
[WhiteElo "2157"]
[BlackElo "2399"]
[TimeControl "180+1"]
[EndTime "10:39:15 PDT"]
[Termination "KubaGepard won on time"]

1. e4 {[%clk 0:03:00.9]} 1... e5 {[%clk 0:02:57.8]} 2. Nf3 {[%clk 0:03:00.6]}
2... Nc6 {[%clk 0:02:57.1]} 3. Bb5 {[%clk 0:03:00.3]} 3... a6 {[%clk 0:02:56.4]}
4. Ba4 {[%clk 0:03:00.2]} 4... Nf6 {[%clk 0:02:55.9]} 5. O-O {[%clk 0:03:00]}
5... Be7 {[%clk 0:02:56.2]} 6. Re1 {[%clk 0:02:58.6]} 6... b5 {[%clk 0:02:56.7]}
7. Bb3 {[%clk 0:02:58.5]} 7... d6 {[%clk 0:02:57.2]} 8. c3 {[%clk 0:02:57.7]}
8... O-O {[%clk 0:02:57.4]} 9. h3 {[%clk 0:02:57.6]} 9... Na5 {[%clk 0:02:44.7]}
10. Bc2 {[%clk 0:02:56.5]} 10... c5 {[%clk 0:02:43.9]} 11. d4 {[%clk 0:02:56]}
11... Qc7 {[%clk 0:02:42.2]} 12. Nbd2 {[%clk 0:02:55.1]} 12... cxd4 {[%clk
0:02:40.8]} 13. cxd4 {[%clk 0:02:53.8]} 13... Rd8 {[%clk 0:02:41.7]} 14. Nf1
{[%clk 0:02:43.8]} 14... exd4 {[%clk 0:02:40.6]} 15. Nxd4 {[%clk 0:02:41.3]}
15... d5 {[%clk 0:02:38.5]} 16. e5 {[%clk 0:02:38.5]} 16... Ne4 {[%clk
0:02:34.8]} 17. Bf4 {[%clk 0:02:23.5]} 17... Qb6 {[%clk 0:02:29]} 18. Rc1 {[%clk
0:02:16.5]} 18... Bc5 {[%clk 0:02:28]} 19. Be3 {[%clk 0:02:08.6]} 19... Nc4
{[%clk 0:02:28]} 20. b3 {[%clk 0:01:51]} 20... Nxe5 {[%clk 0:02:23]} 21. Bb1
{[%clk 0:01:43.8]} 21... Bb7 {[%clk 0:02:16.7]} 22. Rxc5 {[%clk 0:01:17.8]}
22... Nxc5 {[%clk 0:01:56]} 23. Nf5 {[%clk 0:00:49.2]} 23... Qc7 {[%clk
0:01:29.1]} 24. Bd4 {[%clk 0:00:40.9]} 24... Ne4 {[%clk 0:01:27.3]} 25. N1g3
{[%clk 0:00:35.4]} 25... Re8 {[%clk 0:01:18.7]} 26. Qh5 {[%clk 0:00:24.2]} 26...
g6 {[%clk 0:01:04.9]} 27. Qh6 {[%clk 0:00:19.2]} 27... gxf5 {[%clk 0:01:04.9]}
28. Nxf5 {[%clk 0:00:18.2]} 28... f6 {[%clk 0:01:03.8]} 29. f3 {[%clk
0:00:10.6]} 29... Qf7 {[%clk 0:00:53]} 30. fxe4 {[%clk 0:00:05.2]} 30... Qg6
{[%clk 0:00:52.4]} 31. Qxg6+ {[%clk 0:00:01.7]} 31... hxg6 {[%clk 0:00:51.4]}
0-1

[Event "*** SCC Grand Prix: Titled Tuesday Blitz"]
[Site "Chess.com"]
[Date "2020.09.08"]
[Round "4"]
[White "keepitcool9499"]
[Black "chessbia"]
[Result "1-0"]
[WhiteElo "2647"]
[BlackElo "2165"]
[TimeControl "180+1"]
[EndTime "10:39:15 PDT"]
[Termination "keepitcool9499 won by resignation"]

1. d4 {[%clk 0:03:00.9]} 1... d5 {[%clk 0:02:59.8]} 2. c4 {[%clk 0:02:58.6]}
2... e6 {[%clk 0:03:00.7]} 3. Nc3 {[%clk 0:02:56.7]} 3... Nf6 {[%clk 0:03:00.6]}
4. Nf3 {[%clk 0:02:57.6]} 4... Be7 {[%clk 0:03:00.5]} 5. e3 {[%clk 0:02:56.5]}
5... O-O {[%clk 0:03:01]} 6. Bd3 {[%clk 0:02:54.9]} 6... dxc4 {[%clk 0:03:00.8]}
7. Bxc4 {[%clk 0:02:55.8]} 7... a6 {[%clk 0:03:01.4]} 8. Be2 {[%clk 0:02:55.7]}
8... b5 {[%clk 0:03:01.6]} 9. O-O {[%clk 0:02:56.6]} 9... Bb7 {[%clk 0:03:02.1]}
10. Ne5 {[%clk 0:02:56.9]} 10... Nbd7 {[%clk 0:03:02.1]} 11. Bf3 {[%clk
0:02:57.4]} 11... Bxf3 {[%clk 0:02:59.4]} 12. Qxf3 {[%clk 0:02:00.2]} 12... Nxe5
{[%clk 0:02:59.1]} 13. dxe5 {[%clk 0:01:59.5]} 13... Nd7 {[%clk 0:02:59.8]} 14.
Qg3 {[%clk 0:01:54.6]} 14... c5 {[%clk 0:02:47.5]} 15. e4 {[%clk 0:01:44.9]}
15... Re8 {[%clk 0:02:38.7]} 16. Be3 {[%clk 0:01:40.3]} 16... Qc7 {[%clk
0:02:37.5]} 17. f4 {[%clk 0:01:38.2]} 17... Bf8 {[%clk 0:02:36.3]} 18. Rad1
{[%clk 0:01:32.8]} 18... c4 {[%clk 0:02:34.8]} 19. f5 {[%clk 0:01:30.3]} 19...
Nxe5 {[%clk 0:02:28.3]} 20. fxe6 {[%clk 0:01:27.8]} 20... Rxe6 {[%clk
0:02:25.6]} 21. Nd5 {[%clk 0:01:24.5]} 21... Qc6 {[%clk 0:02:08.7]} 22. Kh1
{[%clk 0:01:21.5]} 22... f6 {[%clk 0:01:57.2]} 23. Nf4 {[%clk 0:01:15.9]} 23...
Re7 {[%clk 0:01:48.9]} 24. Nd5 {[%clk 0:01:13.9]} 24... Re6 {[%clk 0:01:38.4]}
25. Nxf6+ {[%clk 0:01:09.3]} 25... Rxf6 {[%clk 0:01:27.9]} 26. Qxe5 {[%clk
0:01:09.2]} 26... Rxf1+ {[%clk 0:01:16.4]} 27. Rxf1 {[%clk 0:01:06.4]} 27... Re8
{[%clk 0:01:16.8]} 28. Qf5 {[%clk 0:00:27.6]} 28... Qe6 {[%clk 0:01:10.6]} 29.
Qf3 {[%clk 0:00:20.3]} 29... h6 {[%clk 0:01:09.4]} 30. Bd4 {[%clk 0:00:17.5]}
30... Qxe4 {[%clk 0:01:03.3]} 31. Qf7+ {[%clk 0:00:16.9]} 31... Kh7 {[%clk
0:01:03.7]} 32. h3 {[%clk 0:00:13.7]} 32... Qe6 {[%clk 0:00:54]} 33. Qxe6 {[%clk
0:00:10.5]} 33... Rxe6 {[%clk 0:00:54.2]} 34. Rxf8 {[%clk 0:00:10.8]} 34... Re1+
{[%clk 0:00:52.2]} 35. Kh2 {[%clk 0:00:10.7]} 35... Rd1 {[%clk 0:00:51.7]} 36.
Bc3 {[%clk 0:00:11.2]} 36... Rd6 {[%clk 0:00:50.6]} 37. Rf7 {[%clk 0:00:11.3]}
37... Rg6 {[%clk 0:00:49.1]} 38. Rf3 {[%clk 0:00:11.6]} 38... h5 {[%clk
0:00:47.7]} 39. Rg3 {[%clk 0:00:12]} 1-0

[Event "*** SCC Grand Prix: Titled Tuesday Blitz"]
[Site "Chess.com"]
[Date "2020.09.08"]
[Round "4"]
[White "Sibelephant"]
[Black "Shield12"]
[Result "1/2-1/2"]
[WhiteElo "3116"]
[BlackElo "2822"]
[TimeControl "180+1"]
[EndTime "10:39:16 PDT"]
[Termination "Game drawn by agreement"]

1. d4 {[%clk 0:02:59.7]} 1... Nf6 {[%clk 0:03:00]} 2. c4 {[%clk 0:03:00]} 2...
e6 {[%clk 0:03:00.1]} 3. Nc3 {[%clk 0:03:00.2]} 3... Bb4 {[%clk 0:02:59.5]} 4.
Bd2 {[%clk 0:03:00.4]} 4... O-O {[%clk 0:02:59]} 5. Nf3 {[%clk 0:03:00.8]} 5...
b6 {[%clk 0:02:58.7]} 6. e3 {[%clk 0:03:00.9]} 6... Bb7 {[%clk 0:02:58.8]} 7.
Bd3 {[%clk 0:03:01.3]} 7... d6 {[%clk 0:02:57]} 8. O-O {[%clk 0:02:59]} 8...
Bxc3 {[%clk 0:02:57.1]} 9. Bxc3 {[%clk 0:02:58.8]} 9... Ne4 {[%clk 0:02:57.7]}
10. Be1 {[%clk 0:02:58.3]} 10... Nd7 {[%clk 0:02:57.2]} 11. Nd2 {[%clk
0:02:56.6]} 11... f5 {[%clk 0:02:55]} 12. f3 {[%clk 0:02:55.9]} 12... Nxd2
{[%clk 0:02:53.8]} 13. Bxd2 {[%clk 0:02:55.9]} 13... e5 {[%clk 0:02:52.2]} 14.
Bc3 {[%clk 0:02:47.2]} 14... Qe7 {[%clk 0:02:44.5]} 15. Bc2 {[%clk 0:02:42.7]}
15... c5 {[%clk 0:02:37.4]} 16. Qd2 {[%clk 0:02:40.1]} 16... e4 {[%clk 0:02:32]}
17. d5 {[%clk 0:02:25.9]} 17... Ne5 {[%clk 0:02:15.9]} 18. fxe4 {[%clk
0:02:25.3]} 18... Nxc4 {[%clk 0:02:07.6]} 19. Qe2 {[%clk 0:02:22.2]} 19... b5
{[%clk 0:02:07.8]} 20. Bd3 {[%clk 0:01:31.9]} 20... fxe4 {[%clk 0:02:01.4]} 21.
Bxc4 {[%clk 0:01:31.9]} 21... bxc4 {[%clk 0:02:02.3]} 22. Qxc4 {[%clk
0:01:32.4]} 22... Qg5 {[%clk 0:01:58.9]} 23. Qxe4 {[%clk 0:01:20.4]} 23... Bxd5
{[%clk 0:01:54.8]} 24. h4 {[%clk 0:01:20.5]} 24... Bxe4 {[%clk 0:01:31.9]} 25.
hxg5 {[%clk 0:01:20.3]} 25... Rxf1+ {[%clk 0:01:28.9]} 26. Rxf1 {[%clk
0:01:20.4]} 26... Rf8 {[%clk 0:01:27.2]} 27. Rd1 {[%clk 0:01:20.5]} 27... d5
{[%clk 0:01:27]} 28. Rf1 {[%clk 0:01:03.3]} 28... Rxf1+ {[%clk 0:01:24.8]} 29.
Kxf1 {[%clk 0:01:03.7]} 29... Kf7 {[%clk 0:01:25.7]} 30. Kf2 {[%clk 0:01:03.9]}
30... Kg6 {[%clk 0:01:25.8]} 31. g3 {[%clk 0:01:04.3]} 31... a6 {[%clk
0:01:19.3]} 32. Be5 {[%clk 0:01:04]} 32... Kxg5 {[%clk 0:01:18.4]} 33. Bxg7
{[%clk 0:01:03.9]} 33... Kf5 {[%clk 0:01:17.4]} 34. Bf8 {[%clk 0:01:04.1]} 34...
c4 {[%clk 0:01:17.5]} 35. Bg7 {[%clk 0:01:04.1]} 35... Kg5 {[%clk 0:01:16.9]}
36. Ke1 {[%clk 0:01:03.3]} 36... Kg4 {[%clk 0:01:16.7]} 37. Be5 {[%clk
0:01:02.9]} 37... Kf3 {[%clk 0:01:15.4]} 38. Kd2 {[%clk 0:01:02.9]} 38... h5
{[%clk 0:01:13.7]} 39. Bf4 {[%clk 0:01:01.4]} 39... Bb1 {[%clk 0:01:12.1]} 40.
a3 {[%clk 0:01:00.4]} 40... Ke4 {[%clk 0:01:10]} 41. Kc3 {[%clk 0:00:54.8]}
41... Bd3 {[%clk 0:01:03.2]} 42. Kb4 {[%clk 0:00:46]} 42... Be2 {[%clk
0:00:53.8]} 43. Kc3 {[%clk 0:00:37.6]} 43... Bd3 {[%clk 0:00:53.8]} 44. Kb4
{[%clk 0:00:34.8]} 44... Be2 {[%clk 0:00:53.9]} 1/2-1/2

[Event "*** SCC Grand Prix: Titled Tuesday Blitz"]
[Site "Chess.com"]
[Date "2020.09.08"]
[Round "4"]
[White "politeplayer"]
[Black "crossingthestreet"]
[Result "0-1"]
[WhiteElo "2249"]
[BlackElo "2431"]
[TimeControl "180+1"]
[EndTime "10:39:16 PDT"]
[Termination "crossingthestreet won by resignation"]

1. e4 {[%clk 0:03:00.9]} 1... c6 {[%clk 0:02:58.7]} 2. d4 {[%clk 0:03:00.3]}
2... d5 {[%clk 0:02:59.6]} 3. exd5 {[%clk 0:03:00.2]} 3... cxd5 {[%clk
0:03:00.5]} 4. c4 {[%clk 0:03:00.5]} 4... Nf6 {[%clk 0:02:59.5]} 5. Nc3 {[%clk
0:03:01]} 5... Nc6 {[%clk 0:02:59.6]} 6. Bg5 {[%clk 0:02:59.1]} 6... Ne4 {[%clk
0:02:59.2]} 7. Nxe4 {[%clk 0:02:50.3]} 7... dxe4 {[%clk 0:03:00.1]} 8. d5 {[%clk
0:02:50.2]} 8... Ne5 {[%clk 0:03:00.2]} 9. Bf4 {[%clk 0:02:44.5]} 9... Ng6
{[%clk 0:02:45.7]} 10. Bg3 {[%clk 0:02:43]} 10... e5 {[%clk 0:02:37]} 11. Ne2
{[%clk 0:02:38.1]} 11... f5 {[%clk 0:02:32.5]} 12. f4 {[%clk 0:02:29.5]} 12...
Bb4+ {[%clk 0:02:30.3]} 13. Nc3 {[%clk 0:02:22.8]} 13... exf4 {[%clk 0:02:29.5]}
14. Qa4+ {[%clk 0:02:19.5]} 14... Bd7 {[%clk 0:02:28.9]} 15. Qxb4 {[%clk
0:02:19.1]} 15... fxg3 {[%clk 0:02:28.9]} 16. hxg3 {[%clk 0:02:11.8]} 16... Qg5
{[%clk 0:02:27.9]} 17. Nb5 {[%clk 0:01:50]} 17... Qxg3+ {[%clk 0:02:22.6]} 18.
Kd1 {[%clk 0:01:49.5]} 18... Bxb5 {[%clk 0:02:00.8]} 19. Qxb5+ {[%clk
0:01:46.8]} 19... Ke7 {[%clk 0:01:39.8]} 20. Qxb7+ {[%clk 0:01:28.2]} 20... Kf6
{[%clk 0:01:39.7]} 21. Qc6+ {[%clk 0:01:25.1]} 21... Kg5 {[%clk 0:01:39.5]} 22.
Be2 {[%clk 0:01:24.4]} 22... h5 {[%clk 0:01:19.9]} 23. Kc2 {[%clk 0:01:09.5]}
23... Rac8 {[%clk 0:01:12.6]} 24. Qd7 {[%clk 0:01:03.4]} 24... Qe5 {[%clk
0:01:10]} 25. Raf1 {[%clk 0:00:56.9]} 25... f4 {[%clk 0:01:07.5]} 26. Bxh5
{[%clk 0:00:45.3]} 26... Rxc4+ {[%clk 0:01:00.4]} 27. Kb1 {[%clk 0:00:42.6]}
27... Rxh5 {[%clk 0:00:53.9]} 28. Rxh5+ {[%clk 0:00:23.5]} 28... Kxh5 {[%clk
0:00:54.8]} 29. Rh1+ {[%clk 0:00:17.9]} 29... Kg5 {[%clk 0:00:38.3]} 30. Qd8+
{[%clk 0:00:17.9]} 30... Qe7 {[%clk 0:00:36.3]} 31. Qb8 {[%clk 0:00:12.7]} 31...
e3 {[%clk 0:00:34.5]} 32. g3 {[%clk 0:00:11.7]} 32... Qe4+ {[%clk 0:00:33.8]}
0-1

[Event "*** SCC Grand Prix: Titled Tuesday Blitz"]
[Site "Chess.com"]
[Date "2020.09.08"]
[Round "4"]
[White "midedu"]
[Black "garicradomir"]
[Result "0-1"]
[WhiteElo "2095"]
[BlackElo "2374"]
[TimeControl "180+1"]
[EndTime "10:39:20 PDT"]
[Termination "garicradomir won on time"]

1. e4 {[%clk 0:03:00.9]} 1... g6 {[%clk 0:03:00]} 2. d4 {[%clk 0:03:00.4]} 2...
Nf6 {[%clk 0:03:00.2]} 3. Nc3 {[%clk 0:03:00.7]} 3... d5 {[%clk 0:02:59.8]} 4.
e5 {[%clk 0:02:57.3]} 4... Ne4 {[%clk 0:02:59.9]} 5. Bd3 {[%clk 0:02:48.4]} 5...
Nxc3 {[%clk 0:02:59.2]} 6. bxc3 {[%clk 0:02:48.1]} 6... c5 {[%clk 0:02:59.8]} 7.
Nf3 {[%clk 0:02:34.3]} 7... Qa5 {[%clk 0:02:54.1]} 8. Bd2 {[%clk 0:02:33.3]}
8... c4 {[%clk 0:02:54.4]} 9. Be2 {[%clk 0:02:32.3]} 9... Bf5 {[%clk 0:02:51.6]}
10. Nh4 {[%clk 0:02:28.3]} 10... Be6 {[%clk 0:02:46.7]} 11. O-O {[%clk
0:02:27.3]} 11... Nc6 {[%clk 0:02:41.6]} 12. f4 {[%clk 0:02:26.8]} 12... O-O-O
{[%clk 0:02:30.6]} 13. f5 {[%clk 0:02:26]} 13... gxf5 {[%clk 0:02:29.8]} 14.
Nxf5 {[%clk 0:02:25.5]} 14... Kb8 {[%clk 0:02:24.1]} 15. Kh1 {[%clk 0:02:20.5]}
15... Rg8 {[%clk 0:02:22.3]} 16. a4 {[%clk 0:01:54.7]} 16... Rd7 {[%clk
0:02:14.5]} 17. Qe1 {[%clk 0:01:18.4]} 17... a6 {[%clk 0:01:50.2]} 18. Qh4
{[%clk 0:01:17]} 18... h6 {[%clk 0:01:17.6]} 19. Bh5 {[%clk 0:00:22.7]} 19...
Ka8 {[%clk 0:01:05.8]} 20. Ra3 {[%clk 0:00:13.3]} 20... Bxf5 {[%clk 0:01:04]}
21. Rxf5 {[%clk 0:00:12.7]} 21... e6 {[%clk 0:01:03.6]} 22. Rxf7 {[%clk
0:00:12.6]} 22... Rxf7 {[%clk 0:00:42.3]} 23. Bxf7 {[%clk 0:00:12.3]} 23... Rg7
{[%clk 0:00:42.1]} 24. Qf6 {[%clk 0:00:10]} 24... Rxf7 {[%clk 0:00:36.5]} 25.
Qxf7 {[%clk 0:00:09.9]} 25... Bxa3 {[%clk 0:00:36.4]} 26. Qxe6 {[%clk
0:00:09.4]} 26... Nxd4 {[%clk 0:00:34.7]} 27. Qc8+ {[%clk 0:00:03.9]} 27... Ka7
{[%clk 0:00:34.4]} 28. e6 {[%clk 0:00:01.1]} 28... Nc6 {[%clk 0:00:29.2]} 0-1

[Event "*** SCC Grand Prix: Titled Tuesday Blitz"]
[Site "Chess.com"]
[Date "2020.09.08"]
[Round "4"]
[White "rasmussvane"]
[Black "2nd_life"]
[Result "1-0"]
[WhiteElo "2880"]
[BlackElo "2533"]
[TimeControl "180+1"]
[EndTime "10:39:21 PDT"]
[Termination "rasmussvane won on time"]

1. Nf3 {[%clk 0:03:00.9]} 1... Nf6 {[%clk 0:02:58.7]} 2. c4 {[%clk 0:03:00.6]}
2... g6 {[%clk 0:02:57]} 3. Nc3 {[%clk 0:02:56.3]} 3... Bg7 {[%clk 0:02:57.1]}
4. e4 {[%clk 0:02:56.4]} 4... O-O {[%clk 0:02:54.8]} 5. d4 {[%clk 0:02:55.2]}
5... d6 {[%clk 0:02:54.8]} 6. Be2 {[%clk 0:02:55.6]} 6... Bg4 {[%clk 0:02:52.1]}
7. Be3 {[%clk 0:02:54.7]} 7... Nfd7 {[%clk 0:02:51.6]} 8. Rc1 {[%clk 0:02:52.2]}
8... c5 {[%clk 0:02:46.9]} 9. d5 {[%clk 0:02:52.6]} 9... a6 {[%clk 0:02:34.2]}
10. a4 {[%clk 0:02:51.2]} 10... Qb6 {[%clk 0:02:05.7]} 11. Qc2 {[%clk
0:02:51.3]} 11... Qb4 {[%clk 0:01:44.8]} 12. Nd2 {[%clk 0:02:51.3]} 12... Bxe2
{[%clk 0:01:40.1]} 13. Kxe2 {[%clk 0:02:52.2]} 13... Bxc3 {[%clk 0:01:33.2]} 14.
Qxc3 {[%clk 0:02:38.9]} 14... Qxc3 {[%clk 0:01:33]} 15. Rxc3 {[%clk 0:02:39.4]}
15... b5 {[%clk 0:01:26.5]} 16. axb5 {[%clk 0:02:23.9]} 16... axb5 {[%clk
0:01:26.4]} 17. cxb5 {[%clk 0:02:24.8]} 17... Ra5 {[%clk 0:01:25.8]} 18. Rb3
{[%clk 0:02:22.8]} 18... Nb6 {[%clk 0:01:25.3]} 19. Rc1 {[%clk 0:02:21.6]} 19...
N8d7 {[%clk 0:01:24.6]} 20. Nb1 {[%clk 0:01:45.9]} 20... Rb8 {[%clk 0:01:17.6]}
21. Na3 {[%clk 0:01:45.8]} 21... Ra4 {[%clk 0:01:10.8]} 22. f3 {[%clk
0:01:44.6]} 22... f5 {[%clk 0:01:09.4]} 23. exf5 {[%clk 0:01:37.6]} 23... gxf5
{[%clk 0:01:09.1]} 24. Rd1 {[%clk 0:01:28.9]} 24... Nf6 {[%clk 0:01:07.9]} 25.
Rbd3 {[%clk 0:01:28.7]} 25... Rb4 {[%clk 0:01:00.3]} 26. b3 {[%clk 0:01:25.4]}
26... f4 {[%clk 0:00:29.4]} 27. Bd2 {[%clk 0:01:21.9]} 27... Nbxd5 {[%clk
0:00:22.8]} 28. Bxb4 {[%clk 0:01:21.5]} 28... cxb4 {[%clk 0:00:21]} 29. Nb1
{[%clk 0:01:08]} 29... Rxb5 {[%clk 0:00:18.6]} 30. Rc1 {[%clk 0:01:08.3]} 30...
Kf7 {[%clk 0:00:18.3]} 31. g4 {[%clk 0:01:04.5]} 31... h6 {[%clk 0:00:12.2]} 32.
h4 {[%clk 0:01:04.4]} 32... e5 {[%clk 0:00:11.3]} 33. Rc6 {[%clk 0:00:58.4]}
33... Ke6 {[%clk 0:00:09.9]} 34. Nd2 {[%clk 0:00:58.3]} 34... Nc3+ {[%clk
0:00:06.3]} 35. Kf2 {[%clk 0:00:56.1]} 35... Ne8 {[%clk 0:00:02.8]} 36. Nc4
{[%clk 0:00:56.2]} 36... Rd5 {[%clk 0:00:01.8]} 37. Rxd5 {[%clk 0:00:51.9]}
37... Kxd5 {[%clk 0:00:02.1]} 38. Rc8 {[%clk 0:00:52.1]} 38... Nf6 {[%clk
0:00:01.8]} 39. g5 {[%clk 0:00:52.6]} 39... hxg5 {[%clk 0:00:01.7]} 40. hxg5
{[%clk 0:00:53.5]} 1-0

[Event "*** SCC Grand Prix: Titled Tuesday Blitz"]
[Site "Chess.com"]
[Date "2020.09.08"]
[Round "4"]
[White "dragos420"]
[Black "fighter2jz"]
[Result "0-1"]
[WhiteElo "2494"]
[BlackElo "2716"]
[TimeControl "180+1"]
[EndTime "10:39:23 PDT"]
[Termination "fighter2jz won on time"]

1. e4 {[%clk 0:03:00.9]} 1... c5 {[%clk 0:02:59.6]} 2. Nf3 {[%clk 0:03:00.8]}
2... d6 {[%clk 0:02:59.1]} 3. Bb5+ {[%clk 0:02:59.9]} 3... Nd7 {[%clk
0:02:58.3]} 4. c3 {[%clk 0:02:59.6]} 4... Nf6 {[%clk 0:02:57.3]} 5. Bd3 {[%clk
0:02:59]} 5... e6 {[%clk 0:02:54.2]} 6. O-O {[%clk 0:02:56.5]} 6... Be7 {[%clk
0:02:54.2]} 7. Bc2 {[%clk 0:02:56.6]} 7... O-O {[%clk 0:02:53.7]} 8. d4 {[%clk
0:02:57]} 8... b5 {[%clk 0:02:53.6]} 9. Re1 {[%clk 0:02:31.2]} 9... e5 {[%clk
0:02:50.4]} 10. b3 {[%clk 0:02:23.6]} 10... cxd4 {[%clk 0:02:44.5]} 11. cxd4
{[%clk 0:02:23.5]} 11... Bb7 {[%clk 0:02:45]} 12. Bb2 {[%clk 0:02:22.7]} 12...
Rc8 {[%clk 0:02:44.5]} 13. Bd3 {[%clk 0:02:09.7]} 13... a6 {[%clk 0:02:40.2]}
14. dxe5 {[%clk 0:02:07.3]} 14... dxe5 {[%clk 0:02:35.7]} 15. Nxe5 {[%clk
0:02:07.1]} 15... Nxe5 {[%clk 0:02:35.4]} 16. Bxe5 {[%clk 0:02:06.5]} 16... Nxe4
{[%clk 0:02:28.9]} 17. Bxe4 {[%clk 0:01:14.9]} 17... Bxe4 {[%clk 0:02:13.8]} 18.
Qxd8 {[%clk 0:01:11.1]} 18... Rfxd8 {[%clk 0:02:13.1]} 19. Nc3 {[%clk 0:01:12]}
19... Bg6 {[%clk 0:02:08.6]} 20. Rac1 {[%clk 0:01:06]} 20... Ba3 {[%clk
0:02:07.9]} 21. Rcd1 {[%clk 0:01:01.4]} 21... Rxd1 {[%clk 0:01:31.5]} 22. Rxd1
{[%clk 0:01:02.3]} 22... f6 {[%clk 0:01:28.5]} 23. Bd4 {[%clk 0:00:43.4]} 23...
Bf7 {[%clk 0:00:54.9]} 24. h3 {[%clk 0:00:24.7]} 24... h6 {[%clk 0:00:46.4]} 25.
h4 {[%clk 0:00:05.1]} 25... Bb2 {[%clk 0:00:24.8]} 26. Nxb5 {[%clk 0:00:02.8]}
26... Rd8 {[%clk 0:00:25.1]} 0-1